fUSD/lending_fUSD_20240903
["ID","MTS","AMOUNT","RATE_DAILY","PERIOD"]
[337027789,1725327032155,-154.66,0.0001499,2]
[337027790,1725327032165,-154.66,0.0001499,2]
[337027791,1725327032174,-154.66,0.0001499,2]
[337027792,1725327032183,-154.66,0.0001499,2]
[337027793,1725327032192,-2153.95680591,0.00014997,2]
[337027794,1725327032201,-312.70988339,0.00014999,2]
[337027795,1725327032211,-500.0,0.00014999,2]
[337027796,1725327032220,-500.0,0.00014999,2]
[337027797,1725327032232,-500.0,0.00014999,2]
[337027798,1725327032242,-500.0,0.00014999,2]
[337027799,1725327032251,-500.0,0.00014999,2]
[337027800,1725327032260,-500.0,0.00014999,2]
[337027801,1725327032270,-500.0,0.00014999,2]
[337027802,1725327032279,-626.2696746,0.00014999,2]
[337027803,1725327032288,-500.0,0.00014999,2]
[337027804,1725327032297,-500.0,0.00014999,2]
[337027805,1725327032306,-177.19272983,0.00014999,2]
[337027806,1725327032315,-64279.11008185,0.00015,2]
[337027807,1725327032327,-2638.16445635,0.00015,2]
[337027808,1725327032338,-41313.49718545,0.00015,2]
[337027809,1725327037819,-339.10797404,0.000149,2]
[337027810,1725327037829,-703.72158249,0.00015,2]
[337027811,1725327037841,-1659.66309036,0.00015,2]
[337027813,1725327037852,-568.94985213,0.00015,2]
[337027815,1725327037864,-453.30570109,0.00015,2]
[337027816,1725327037875,-778.30400861,0.00015,2]
[337027817,1725327037887,-570.55999995,0.00015,2]
[337027818,1725327037898,-1781.31406669,0.00015,2]
[337027819,1725327037909,-579.65942182,0.00015,2]
[337027820,1725327037961,-622.21983407,0.00015,2]
[337027821,1725327037972,-2919.9,0.00015,2]
[337027822,1725327037983,-754.9956438,0.00015,2]
[337027823,1725327037994,-262.99575244,0.00015,2]
[337027824,1725327038005,-5255.92241343,0.00015,2]
[337027825,1725327038016,-876.60159755,0.00015,2]
[337027826,1725327038099,-3161.98146989,0.00015,2]
[337027827,1725327038112,-1520.8186368,0.00015,2]
[337027828,1725327038123,-404.35608259,0.00015,2]
[337027840,1725327039703,-254.25,0.00015,2]
[337027842,1725327039715,-703.90320097,0.00015,2]
[337027844,1725327039854,-9096.64373114,0.00015,2]
[337027845,1725327039866,-8947.21879473,0.00015,2]
[337027846,1725327039878,-8943.78386462,0.00015,2]
[337027847,1725327039889,-9077.54866152,0.00015,2]
[337027848,1725327040055,-8943.84023489,0.00015,2]
[337027849,1725327040067,-5228.48614854,0.00015,2]
[337027850,1725327040078,-606.43908688,0.00015,2]
[337027851,1725327040089,-139890.60302102,0.00015,2]
[337027852,1725327040102,-656.14,0.00015,2]
[337027853,1725327040124,-370370.62419431,0.00015,2]
[337027854,1725327040133,-216920.33095009,0.00015,2]
[337027855,1725327040146,-416.47603396,0.00015,2]
[337027856,1725327040160,-539.06283141,0.00015,2]
[337027857,1725327040173,-8144.42314774,0.00015,2]
[337027858,1725327040184,-281.186742,0.00015,2]
[337027859,1725327040196,-377.63072068,0.00015,2]
[337027860,1725327040208,-2607.20000779,0.00015,2]
[337027861,1725327040220,-5989.40000001,0.00015,2]
[337027862,1725327040255,-44653.28265325,0.00015,2]
[337027863,1725327040268,-464985.17065866,0.00015,2]
[337027864,1725327040281,-505.2624392,0.00015,2]
[337027865,1725327040292,-752.06647049,0.00015,2]
[337027866,1725327040303,-1600.65,0.00015,2]
[337027867,1725327040314,-39212.85223734,0.00015,2]
[337027869,1725327040327,-385.66261705,0.00015,2]
[337027870,1725327040435,162.6164,0.00027,120]
[337027875,1725327042751,-5507.36088862,0.00015,2]
[337027876,1725327042763,-31029.00000004,0.00015,2]
[337027877,1725327042777,-1625.7938459,0.00015,2]
[337027883,1725327043533,-1647.90000071,0.00015,2]
[337027884,1725327043544,-1575.12680245,0.00015,2]
[337027885,1725327043555,-354.20259538,0.00015,2]
[337027886,1725327043566,-3087.7847,0.00015,2]
[337027887,1725327043576,-3395.57123752,0.00015,2]
[337027888,1725327043587,-9022.73171167,0.00015,2]
[337027889,1725327043598,-296.18044634,0.00015,2]
[337027890,1725327043609,-494.33920324,0.00015,2]
[337027891,1725327043620,-632.52348141,0.00015,2]
[337027892,1725327043631,-1279.97005618,0.00015,2]
[337027893,1725327043641,-24957.75709858,0.00015,2]
[337027894,1725327043652,-4616.80177371,0.00015,2]
[337027895,1725327043663,-1311.45,0.00015,2]
[337027896,1725327043675,-744.33907907,0.00015,2]
[337027903,1725327045854,-16148.70353746,0.00015,2]
[337027904,1725327045865,-1601.35224259,0.00015,2]
[337027905,1725327045878,-1064.7,0.00015,2]
[337027906,1725327045890,-856.2321508,0.00015,2]
[337027907,1725327045984,-67195.4561843,0.00015,2]
[337027908,1725327045995,-3095.56445462,0.00015,2]
[337027909,1725327046007,-27392.8904637,0.00015,2]
[337027910,1725327046020,-1867.26480771,0.00015,2]
[337027911,1725327046032,-810.7547,0.00015,2]
[337027912,1725327046044,-2311.24974926,0.00015,2]
[337027913,1725327046142,-2830.04506402,0.00015,2]
[337027914,1725327073194,192.17,0.00017834,120]
[337027915,1725327090744,150.0,0.00026074,120]
[337027916,1725327208145,500.0,0.00026563,120]
[337027917,1725327210963,150.0,0.00026675,120]
[337027918,1725327323673,159.38,0.00010959,2]
[337027919,1725327330782,150.0,0.00026281,120]
[337027920,1725327333806,432.49,0.0001296,2]
[337027921,1725327390778,150.0,0.00022553,120]
[337027922,1725327409901,3362.44943202,0.00027,120]
[337027923,1725327448232,400.0,0.00027,120]
[337027924,1725327753014,150.0,0.00027,120]
[337027925,1725327754143,150.0,0.00027,120]
[337027926,1725327762962,150.0,0.00025,61]
[337027927,1725327763988,150.0,0.00025,61]
[337027928,1725327764755,150.0,0.00025,61]
[337027929,1725327765768,150.0,0.00025,61]
[337027930,1725327768674,150.0,0.00025,62]
[337027931,1725327769489,150.0,0.00025,62]
[337027932,1725327770239,150.0,0.00025,62]
[337027933,1725327771031,150.0,0.00025,62]
[337027934,1725327773892,150.0,0.00025,63]
[337027935,1725327774679,150.0,0.00025,63]
[337027936,1725327775578,150.0,0.00025,63]
[337027937,1725327776321,150.0,0.00025,63]
[337027938,1725327780306,150.0,0.00025,64]
[337027939,1725327781099,150.0,0.00025,64]
[337027940,1725327782141,150.0,0.00025,64]
[337027941,1725327782636,150.0,0.00025,64]
[337027942,1725327800135,150.0,0.00025,68]
[337027943,1725327801013,150.0,0.00025,68]
[337027944,1725327801795,150.0,0.00025,68]
[337027945,1725327802637,150.0,0.00025,68]
[337027946,1725327805866,150.0,0.00025,69]
[337027947,1725327806774,150.0,0.00025,69]
[337027948,1725327807681,150.0,0.00025,69]
[337027949,1725327808766,150.0,0.00025,69]
[337027950,1725327811331,150.0,0.00024274,120]
[337027951,1725327812977,150.0,0.00025,70]
[337027952,1725327813787,150.0,0.00025,70]
[337027953,1725327814662,150.0,0.00025,70]
[337027954,1725327815567,150.0,0.00025,70]
[337027955,1725327818563,150.0,0.00025,71]
[337027956,1725327819359,150.0,0.00025,71]
[337027957,1725327820160,150.0,0.00025,71]
[337027958,1725327820391,154.86,0.00010959,2]
[337027959,1725327820918,150.0,0.00025,71]
[337027960,1725327831594,150.0,0.00027,120]
[337027961,1725327832693,150.0,0.00027,120]
[337027962,1725327865488,419.67,0.00012528,2]
[337027964,1725327990850,150.0,0.00021954,120]
[337027965,1725328050726,150.0,0.00025998,120]
[337027966,1725328110758,150.0,0.00024896,120]
[337027969,1725328164885,271.0,0.00025,75]
[337027970,1725328165905,550.0,0.00011,2]
[337027971,1725328230818,150.0,0.00024896,120]
[337027977,1725328231917,-150.0,0.00013488,2]
[337027978,1725328231928,-291.93725396,0.00013488,2]
[337027979,1725328231939,-188.14,0.00013998,2]
[337027980,1725328231948,-250.0,0.00014026,2]
[337027981,1725328231957,-581.7,0.00014047,2]
[337027982,1725328231966,-172.57,0.00014065,2]
[337027983,1725328231975,-219.09,0.0001407,2]
[337027984,1725328231984,-1586.63569059,0.00014111,2]
[337027985,1725328231995,-551.29288503,0.00014111,2]
[337027986,1725328232006,-981.50423138,0.00014111,2]
[337027987,1725328232016,-1000.0,0.00014122,2]
[337027988,1725328232025,-607.83,0.00014182,2]
[337027989,1725328232034,-149.91739613,0.00014237,2]
[337027990,1725328232045,-0.08260387,0.00014237,2]
[337027991,1725328232054,-250.0,0.00014459,2]
[337027992,1725328232063,-165.01461394,0.00014459,2]
[337027993,1725328232074,-308.807424,0.00014459,2]
[337027994,1725328232085,-26.16796206,0.00014459,2]
[337027995,1725328232094,-967.59085922,0.00014459,2]
[337027996,1725328232105,-3908.55914078,0.00014459,2]
[337027997,1725328232114,-4949.16792059,0.00014466,2]
[337027998,1725328232133,-269.0000005,0.00014466,2]
[337027999,1725328232143,-885.09342961,0.00014466,2]
[337028000,1725328232155,-507.28495151,0.00014466,2]
[337028001,1725328232165,-1765.2517191,0.00014466,2]
[337028002,1725328232180,-582.92504737,0.00014466,2]
[337028003,1725328233053,213.98,0.00027,120]
[337028004,1725328237911,-7266.08921481,0.00014466,2]
[337028005,1725328238033,-1760.45934095,0.00014466,2]
[337028006,1725328238044,-1908.71029907,0.00014466,2]
[337028007,1725328238055,-4006.01807649,0.00014466,2]
[337028008,1725328238064,-250.0,0.00014525,2]
[337028009,1725328238073,-178.4,0.00014741,2]
[337028010,1725328238083,-150.0,0.00014767,2]
[337028011,1725328238092,-419.67,0.00014792,2]
[337028012,1725328238101,-294.61450271,0.0001485,2]
[337028013,1725328238110,-1330.12084,0.0001485,2]
[337028014,1725328238120,-150.0,0.00014899,2]
[337028015,1725328238129,-232.9166,0.000149,2]
[337028016,1725328238138,-163.0243992,0.000149,2]
[337028017,1725328238147,-179.38684866,0.000149,2]
[337028018,1725328238157,-177.08360545,0.000149,2]
[337028019,1725328238166,-339.10797399,0.000149,2]
[337028020,1725328238175,-18741.96362347,0.000149,2]
[337028021,1725328238194,-1433.91078519,0.000149,2]
[337028022,1725328238205,-1284.68,0.000149,2]
[337028023,1725328238263,-345.0,0.000149,2]
[337028024,1725328238274,-651.2,0.000149,2]
[337028025,1725328238378,-6045.54035109,0.000149,2]
[337028028,1725328238390,-10039.65235949,0.000149,2]
[337028030,1725328238399,-616.5022115,0.000149,2]
[337028032,1725328238408,-1270.41636931,0.000149,2]
[337028033,1725328238417,-578.05,0.00014903,2]
[337028035,1725328238427,-281.92207533,0.00014986,2]
[337028037,1725328238436,-302.93,0.0001499,3]
[337028039,1725328238445,-151.47,0.0001499,3]
[337028041,1725328238454,-454.42,0.0001499,3]
[337028043,1725328238463,-1037.36288268,0.00014997,2]
[337028045,1725328238472,-787.91,0.00014998,2]
[337028047,1725328238481,-500.0,0.00014999,2]
[337028049,1725328238490,-500.0,0.00014999,2]
[337028051,1725328238499,-500.0,0.00014999,2]
[337028053,1725328238508,-500.0,0.00014999,2]
[337028055,1725328238517,-178.84028189,0.00014999,2]
[337028057,1725328238529,-500.0,0.00014999,2]
[337028059,1725328238538,-190.24395901,0.00014999,2]
[337028061,1725328238548,-500.0,0.00014999,2]
[337028062,1725328238559,-362.49360638,0.00014999,2]
[337028064,1725328238568,-500.0,0.00014999,2]
[337028065,1725328238576,-500.0,0.00014999,2]
[337028066,1725328238584,-449.4994917,0.00014999,2]
[337028067,1725328238593,-150.40986106,0.00014999,2]
[337028069,1725328238604,-354854.41225608,0.00015,2]
[337028070,1725328238613,-867574.9084453,0.00015,2]
[337028071,1725328238624,-406.14743283,0.00015,2]
[337028074,1725328240176,-1387.96978456,0.00015,2]
[337028075,1725328240470,-1619.03595598,0.00015,2]
[337028122,1725328242955,-705.94664568,0.000149,2]
[337028123,1725328242964,-443.50111103,0.00015,2]
[337028124,1725328242976,-817.91371291,0.00015,2]
[337028141,1725328243722,-916.59830324,0.00015,2]
[337028142,1725328243733,-289.34499,0.00015,2]
[337028143,1725328243743,-407.97,0.00015,2]
[337028148,1725328245975,-118753.75999092,0.00015,2]
[337028183,1725328290749,150.0,0.00023822,120]
[337028184,1725328314789,157.85,0.00010959,2]
[337028185,1725328351317,150.0,0.000249,120]
[337028186,1725328530761,150.0,0.00025035,120]
[337028187,1725328599473,189.04,0.00025064,120]
[337028192,1725328710775,150.0,0.00026503,120]
[337028194,1725328790792,157.79,0.00010959,2]
[337028195,1725328831409,150.0,0.00022355,120]
[337028196,1725328890813,150.0,0.00026076,120]
[337028197,1725328950819,150.0,0.00025269,120]
[337028198,1725329131611,150.0,0.00024858,120]
[337028202,1725329432120,-401.96,0.00014801,2]
[337028203,1725329432131,-276.97515798,0.0001485,2]
[337028204,1725329432143,-831.45887202,0.0001485,2]
[337028205,1725329432152,-150.0,0.00014899,2]
[337028206,1725329432162,-798.7905,0.000149,2]
[337028207,1725329432171,-1890.1939,0.000149,2]
[337028208,1725329432181,-457.3026,0.000149,2]
[337028209,1725329432190,-51.53943629,0.000149,2]
[337028210,1725329432201,-295.4294,0.000149,2]
[337028211,1725329432216,-2764.06646371,0.000149,2]
[337028212,1725329432225,-8157.0008,0.000149,2]
[337028213,1725329432234,-1030.51252361,0.000149,2]
[337028214,1725329432307,-35.07837639,0.000149,2]
[337028215,1725329432317,-9859.89266035,0.000149,2]
[337028216,1725329432327,-35730.6275,0.000149,2]
[337028217,1725329432337,-163.0243992,0.000149,2]
[337028218,1725329432346,-179.38684865,0.000149,2]
[337028219,1725329432356,-177.08360541,0.000149,2]
[337028220,1725329432365,-455.90198177,0.000149,2]
[337028221,1725329432375,-1604.29091258,0.000149,2]
[337028222,1725329432384,-339.10797399,0.000149,2]
[337028223,1725329432394,-500.0,0.00014973,2]
[337028224,1725329432403,-500.0,0.00014973,2]
[337028225,1725329432413,-3436.59322364,0.00014988,2]
[337028226,1725329432422,-1356.2617103,0.0001499,3]
[337028227,1725329432432,-151.46,0.0001499,3]
[337028228,1725329432442,-454.42,0.0001499,3]
[337028229,1725329432451,-28161.97604103,0.00015,2]
[337028230,1725329432466,-1178.81576721,0.00015,2]
[337028249,1725329438401,-1106.44534,0.00015,2]
[337028250,1725329438414,-815.66818952,0.00015,2]
[337028251,1725329438608,-1954.87549614,0.00015,2]
[337028252,1725329438620,-12123.79593227,0.00015,2]
[337028260,1725329440270,-274.4675331,0.00015,2]
[337028261,1725329440282,-268.285,0.00015,2]
[337028263,1725329443242,-1464.06406546,0.00015,2]
[337028264,1725329443254,-486.18500001,0.00015,2]
[337028265,1725329443266,-694.5375725,0.00015,2]
[337028275,1725329444020,-448.95942964,0.00015,2]
[337028276,1725329444030,-1364.2199562,0.00015,2]
[337028277,1725329444041,-935.898057,0.00015,2]
[337028278,1725329444052,-833.87987711,0.00015,2]
[337028279,1725329444062,-12295.49214234,0.00015,2]
[337028280,1725329444073,-1723.80973372,0.00015,2]
[337028281,1725329444084,-425.220645,0.00015,2]
[337028282,1725329444102,-52084.52917522,0.00015,2]
[337028283,1725329444114,-3939.92439593,0.00015,2]
[337028286,1725329446269,-300.0,0.00015,2]
[337028287,1725329446281,-1787.07966376,0.00015,2]
[337028288,1725329446292,-7767.81612531,0.00015,2]
[337028289,1725329446304,-660.50376511,0.00015,2]
[337028290,1725329446315,-9725.73648535,0.00015,2]
[337028291,1725329446489,-19467.58779765,0.00015,2]
[337028294,1725329446500,-13109.52489308,0.00015,2]
[337028331,1725329607996,500.0,0.0002668,120]
[337028332,1725329909518,193.0,0.00010959,2]
[337028333,1725329968311,550.0,0.00011,2]
[337028334,1725329969395,600.0,0.00013,2]
[337028335,1725330002787,150.0,0.00013,2]
[337028336,1725330002967,150.5188531,0.00013,2]
[337028337,1725330309202,6075.6286904,0.00013,2]
[337028338,1725330346741,408.81,0.00012621,2]
[337028339,1725330351582,1326.46181273,0.00010988,2]
[337028340,1725330420117,166.29,0.00010959,2]
[337028341,1725330439492,205.0,9.8e-05,2]
[337028342,1725330475505,4181.029914,0.00013,2]
[337028343,1725330483791,1013.6099198,0.00027,120]
[337028347,1725330524376,200.13805946,0.00013,2]
[337028367,1725330632192,-188.14,0.00014395,2]
[337028370,1725330632202,-108.90785907,0.00014432,2]
[337028372,1725330632213,-141.09214093,0.00014432,2]
[337028374,1725330632222,-250.0,0.00014484,2]
[337028375,1725330632231,-612.13356387,0.00014527,2]
[337028376,1725330632243,-387.86643613,0.00014527,2]
[337028377,1725330632253,-402.29265349,0.00014799,2]
[337028378,1725330632264,-745.31368766,0.00014799,2]
[337028379,1725330632291,-46.39365885,0.00014799,2]
[337028380,1725330632302,-150.0,0.00014799,2]
[337028381,1725330632316,-648.24230898,0.000148,2]
[337028382,1725330632329,-6223.53661166,0.000148,2]
[337028383,1725330632341,-283.8100001,0.000148,2]
[337028384,1725330632396,-1033.09125361,0.000148,2]
[337028385,1725330632408,-584.20458512,0.000148,2]
[337028386,1725330632419,-306203.69138849,0.000148,2]
[337028387,1725330632428,-332.41822861,0.000148,2]
[337028388,1725330632438,-23900.0,0.00014814,2]
[337028389,1725330632447,-1402.81339,0.0001485,2]
[337028390,1725330632457,-408.17,0.00014872,2]
[337028391,1725330632466,-432.819,0.0001488,2]
[337028392,1725330632476,-408.81,0.00014885,2]
[337028393,1725330632486,-499.99,0.00014885,2]
[337028394,1725330632496,-37658.04681097,0.0001489,2]
[337028395,1725330632506,-302.92,0.0001489,3]
[337028396,1725330632518,-1861.22169362,0.00014893,2]
[337028397,1725330632528,-1861.22169362,0.00014894,2]
[337028398,1725330632537,-1861.22169362,0.00014896,2]
[337028399,1725330632547,-1861.22169362,0.00014897,2]
[337028400,1725330632556,-1861.22169362,0.00014899,2]
[337028401,1725330632565,-588.967,0.000149,2]
[337028402,1725330632574,-26605.1844,0.000149,2]
[337028403,1725330632584,-1293.5453,0.000149,2]
[337028404,1725330632594,-16881.6296,0.000149,2]
[337028405,1725330632604,-5538.1357,0.000149,2]
[337028406,1725330632613,-189.41868554,0.000149,2]
[337028408,1725330632623,-4543.27035277,0.000149,2]
[337028410,1725330632631,-3378.6122,0.000149,2]
[337028412,1725330632641,-2966.4777,0.000149,2]
[337028414,1725330632651,-10512.7772,0.000149,2]
[337028416,1725330632662,-160.39600257,0.000149,2]
[337028418,1725330632671,-303.93465452,0.000149,2]
[337028420,1725330632680,-177.8151902,0.000149,2]
[337028422,1725330632689,-1861.22169362,0.000149,2]
[337028424,1725330632700,-1221.62877495,0.000149,2]
[337028426,1725330632710,-846.9442462,0.000149,2]
[337028428,1725330632719,-749.94528707,0.000149,2]
[337028430,1725330632729,-166.26834543,0.000149,2]
[337028432,1725330632740,-250.0,0.000149,2]
[337028434,1725330632749,-500.0,0.00014973,2]
[337028436,1725330632760,-500.0,0.00014973,2]
[337028437,1725330632769,-148965.04038126,0.0001498,2]
[337028441,1725330638343,-225.1607,0.00014427,2]
[337028442,1725330638355,-500.0,0.00014893,2]
[337028443,1725330638365,-500.0,0.00014893,2]
[337028444,1725330638375,-500.0,0.00014893,2]
[337028445,1725330638384,-500.0,0.00014893,2]
[337028446,1725330638395,-500.0,0.00014893,2]
[337028447,1725330638405,-500.0,0.00014893,2]
[337028448,1725330638414,-358.6404714,0.00014893,2]
[337028449,1725330638424,-500.0,0.00014893,2]
[337028450,1725330638433,-228.35137055,0.00014893,2]
[337028451,1725330638443,-60809.51795619,0.0001498,2]
[337028452,1725330638452,-219.15287062,0.00014997,2]
[337028453,1725330638462,-1939.71061663,0.00014999,2]
[337028454,1725330638636,-133.00740704,0.00014999,2]
[337028455,1725330638646,-531.75839296,0.00014999,2]
[337028456,1725330638658,-36.47229421,0.00014999,2]
[337028457,1725330638668,-120403.43091258,0.00015,2]
[337028458,1725330638677,-2426760.8015636,0.00015,2]
[337028459,1725330638690,-703.20536157,0.00015,2]
[337028460,1725330638701,-435.35854429,0.00015,2]
[337028461,1725330638712,-522.95955266,0.00015,2]
[337028462,1725330638727,-31381.03398779,0.00015,2]
[337028463,1725330638738,-20046.88647575,0.00015,2]
[337028464,1725330638749,-453.0,0.00015,2]
[337028465,1725330638760,-10231.82958382,0.00015,2]
[337028466,1725330638771,-1507.57772365,0.00015,2]
[337028467,1725330638790,-687.86640455,0.00015,2]
[337028472,1725330640332,-429.31947091,0.00015,2]
[337028473,1725330640344,-31971.56757775,0.00015,2]
[337028474,1725330640358,-3470.13415581,0.00015,2]
[337028475,1725330640370,-2786.76910673,0.00015,2]
[337028476,1725330640381,-255.721,0.00015,2]
[337028477,1725330640393,-1970.89626122,0.00015,2]
[337028478,1725330640620,-247389.63830131,0.00015,2]
[337028585,1725330643594,-289.10000002,0.00015,2]
[337028588,1725330644091,-1321.69127506,0.00015,2]
[337028589,1725330644125,-1243.06502038,0.00015,2]
[337028590,1725330644137,-10034.08847094,0.00015,2]
[337028614,1725330646276,-10295.71576026,0.00015,2]
[337028615,1725330646397,-321.8,0.00015,2]
[337028618,1725330646685,-3901.71209959,0.00015,2]
[337028619,1725330646696,-1501.27277145,0.00015,2]
[337028620,1725330646711,-387.7317709,0.00015,2]
[337028621,1725330646722,-390.52176688,0.00015,2]
[337028622,1725330688770,224.73,0.00024797,120]
[337028623,1725330902354,161.06,0.00010959,2]
[337028624,1725331255928,1127474.88742132,0.00027,120]
[337028625,1725331290364,1634931.32215397,0.00025,60]
[337028626,1725331437963,422.72,0.00012104,2]
[337028627,1725331471314,157.85,0.00010959,2]
[337028628,1725331771742,550.0,0.00011,2]
[337028634,1725331832457,-300.0,0.0001382,2]
[337028636,1725331832467,-250.0,0.00013821,2]
[337028637,1725331832475,-1315.69249295,0.00013821,2]
[337028639,1725331832486,-1926.93036806,0.00013821,2]
[337028641,1725331832497,-13173.72713899,0.00013821,2]
[337028643,1725331832506,-168.69,0.00013866,2]
[337028645,1725331832516,-250.0,0.00013878,2]
[337028647,1725331832526,-800.0,0.00013984,2]
[337028649,1725331832534,-3900.55,0.00014061,2]
[337028650,1725331832543,-250.0,0.00014061,2]
[337028652,1725331832552,-422.72,0.00014368,2]
[337028654,1725331832561,-172.57,0.00014461,2]
[337028655,1725331832570,-204.08,0.00014495,2]
[337028656,1725331832579,-500.0,0.00014536,2]
[337028657,1725331832588,-2953.3969,0.000147,2]
[337028658,1725331832597,-220.21,0.00014718,2]
[337028659,1725331832606,-499.99,0.00014718,2]
[337028660,1725331832615,-1500.0,0.00014727,2]
[337028661,1725331832625,-150.0,0.00014734,2]
[337028662,1725331832634,-1500.0,0.00014749,2]
[337028663,1725331832643,-1500.0,0.00014759,2]
[337028664,1725331832652,-1500.0,0.00014782,2]
[337028665,1725331832662,-465.30542345,0.000148,2]
[337028666,1725331832675,-465.3054234,0.00014814,2]
[337028667,1725331832684,-1500.0,0.00014819,2]
[337028669,1725331832694,-1295.93405813,0.00014819,2]
[337028671,1725331832703,-150.0,0.00014821,2]
[337028672,1725331832713,-465.3054234,0.00014829,2]
[337028673,1725331832722,-602.07411724,0.00014832,2]
[337028674,1725331832734,-1500.0,0.00014833,2]
[337028675,1725331832744,-465.3054234,0.00014843,2]
[337028676,1725331832756,-1500.0,0.00014844,2]
[337028677,1725331832765,-150.0,0.00014853,2]
[337028678,1725331832775,-465.3054234,0.00014857,2]
[337028679,1725331832784,-390.16236752,0.00014863,2]
[337028680,1725331832794,-150.0,0.00014863,2]
[337028681,1725331832803,-465.3054234,0.00014871,2]
[337028682,1725331832813,-151.26280032,0.00014872,2]
[337028683,1725331832823,-150.0,0.00014872,2]
[337028684,1725331832834,-500.0,0.00014873,2]
[337028685,1725331832846,-357.23,0.00014878,2]
[337028686,1725331832856,-357.23,0.00014878,2]
[337028687,1725331832866,-734.83,0.00014878,2]
[337028688,1725331832876,-1500.0,0.00014881,2]
[337028689,1725331832887,-500.0,0.00014899,2]
[337028690,1725331832897,-500.0,0.00014899,2]
[337028691,1725331832906,-500.0,0.00014899,2]
[337028692,1725331832916,-500.0,0.00014899,2]
[337028693,1725331832925,-500.0,0.00014899,2]
[337028694,1725331832935,-467.96733929,0.00014899,2]
[337028695,1725331832944,-500.0,0.00014899,2]
[337028696,1725331832953,-440.59395976,0.00014899,2]
[337028697,1725331832963,-499.99999999,0.00014899,2]
[337028698,1725331832972,-297.7529,0.000149,2]
[337028699,1725331832981,-188.8060097,0.000149,2]
[337028700,1725331832990,-163.926,0.000149,2]
[337028701,1725331832999,-641.58401024,0.000149,2]
[337028702,1725331833008,-177.388712,0.000149,2]
[337028703,1725331833017,-157268.91877942,0.000149,2]
[337028704,1725331833029,-1474.46617901,0.000149,2]
[337028705,1725331833042,-769.77820846,0.000149,2]
[337028706,1725331833053,-2637.74911535,0.000149,2]
[337028707,1725331833064,-976.47953325,0.000149,2]
[337028708,1725331833075,-5752.86934167,0.000149,2]
[337028709,1725331833086,-503.88900716,0.000149,2]
[337028710,1725331833098,-327.85685687,0.000149,2]
[337028711,1725331833109,-196262.70344519,0.000149,2]
[337028712,1725331833119,-714.58688225,0.000149,2]
[337028713,1725331833128,-607.86930902,0.000149,2]
[337028714,1725331833138,-1693.8884924,0.000149,2]
[337028715,1725331833147,-1499.89057414,0.000149,2]
[337028716,1725331833156,-6485.96738369,0.000149,2]
[337028717,1725331833166,-154.38739058,0.00014906,2]
[337028718,1725331833176,-150.0,0.00014906,2]
[337028719,1725331833185,-151.66077891,0.00014911,2]
[337028720,1725331833195,-1500.0,0.00014924,2]
[337028721,1725331833204,-500.0,0.00014925,2]
[337028722,1725331833213,-500.0,0.00014925,2]
[337028723,1725331833222,-500.0,0.00014925,2]
[337028724,1725331833232,-500.0,0.00014925,2]
[337028725,1725331833241,-500.0,0.00014925,2]
[337028726,1725331833251,-386.7037,0.00014925,2]
[337028727,1725331833260,-500.0,0.00014925,2]
[337028728,1725331833270,-500.0,0.00014925,2]
[337028729,1725331833280,-500.0,0.00014925,2]